Cogmind - Beta 16 --- EXPLORER MODE // 2025.12.26 @ 08:59:39 Player: K.K.Y. Result: Destroyed by KR-GIY(R) with Subdweller Machine Gun Performance ------------- Evolutions (0) 0 Regions Visited (3) 600 Robots Destroyed (43) 215 Value Destroyed (831) 831 Prototype IDs (12) 240 Alien Tech Used (0) 0 Bonus (-32) -32 TOTAL SCORE: 1854 Bonus ------- Friendly Fire -32 Cogmind --------- Core Integrity 0/250 Matter 300/300 Energy 250/250 System Corruption 0% Temperature Cool (0) Movement Core (150) Ox2 Location -10/Subcaves Parts ------- > --- POWER (1) -------- Ion Engine > --- PROPULSION (2) --- (None) > --- UTILITY (3) ------ Cooling System Structural Scanner Sensor Array > --- WEAPON (2) ------- (None) > --- INVENTORY (5) ---- Large Storage Unit Machine Analyzer Improved Terrain Scanner Light Armor Plating Makeshift Hacking Suite Peak State ------------ > --- POWER ------------ Ion Engine > --- PROPULSION ------- Light Treads Light Treads > --- UTILITY ---------- Cooling System Structural Scanner Sensor Array > --- WEAPON ----------- Medium Laser Heavy Battle Rifle > --- INVENTORY -------- Large Storage Unit Improved Terrain Scanner Light Armor Plating Medium Laser Mining Laser [Rating: 12] Favorites ----------- Power Ion Engine Engine Ion Engine Propulsion Light Treads Treads Light Treads Utility Sensor Array Device Sensor Array Processor Targeting Computer Weapon Medium Laser Energy Gun Medium Laser Ballistic Gun Heavy Battle Rifle Special Weapon Mining Laser Build | -11 -10 -10 -10 ------- Run | Yrd Mat Min Sub Slots Evolved 1 | . 1 . . Power . | . . . . Propulsion . | . . . . Utility 1 | . 1 . . Weapon . | . . . . Parts Attached 14 | 6 4 2 2 Power 2 | 1 . 1 . Engine 2 | 1 . 1 . Core . | . . . . Reactor . | . . . . Propulsion 2 | 2 . . . Treads 2 | 2 . . . Leg . | . . . . Wheel . | . . . . Hover . | . . . . Flight . | . . . . Utility 5 | 2 3 . . Device 4 | 1 3 . . Storage . | . . . . Processor 1 | 1 . . . Hackware . | . . . . Protection . | . . . . Artifact . | . . . . Weapon 5 | 1 1 1 2 Energy Gun 3 | 1 1 . 1 Energy Cannon . | . . . . Ballistic Gun 1 | . . 1 . Ballistic Cannon . | . . . . Launcher . | . . . . Special Weapon 1 | . . . 1 Impact Weapon . | . . . . Slashing Weapon . | . . . . Piercing Weapon . | . . . . Special Melee Weapon . | . . . . Unidentified Prototypes . | . . . . Parts Lost 5 | . . . 5 Power . | . . . . Propulsion 2 | . . . 2 Utility . | . . . . Weapon 3 | . . . 3 Highest Loss Streak 2 | . . . 2 To Critical Strikes 1 | . . . 1 Average Backups 4 | 2 4 5 5 Power . | . . . . Propulsion . | . . . . Utility 3 | 2 3 3 3 Weapon 1 | . 1 2 1 Tool/Special . | . . . . Unused Backups 6 | . 1 . 5 Power . | . . . . Propulsion . | . . . . Utility 6 | . 1 . 5 Weapon . | . . . . Tool/Special . | . . . . Average Slot Usage (%) 92 | . 93 100 86 Engine 11 | . 11 12 12 Treads 20 | . 25 25 14 Device 33 | . 28 37 37 Processor 2 | . 6 . . Energy Gun 16 | . 20 19 12 Ballistic Gun 4 | . . 4 8 Peak Build Rating 12 | 6 9 12 12 Average Rating 9 | 5 7 10 10 On Entrance 6 | . 6 9 12 Avg Prop Armor Cover (%) . | . . . . Naked Turns . | . . . . Heaviest Build 15 | 8 13 15 15 Greatest Support 40 | 40 40 40 40 Greatest Overweight (x) 3 | . . . 3 Average Overweight (x) . | . . . . Largest Inventory Capacity 5 | 5 5 5 5 Average Capacity 5 | 5 5 5 5 Most Carried 5 | 4 5 5 5 Average Carried 4 | 2 4 5 4 Final Capacity 5 | 5 5 5 5 Final Carried 5 | 3 5 5 5 Class Distribution -------------------- 100% | Hacker-Mutant Dominant Class ---------------- Hacker-Mutant | -10/Materials Hacker-Mutant | -10/Mines Hacker-Mutant | -10/Subcaves Resources | -11 -10 -10 -10 ----------- Run | Yrd Mat Min Sub Matter Collected 545 | 260 70 18 197 Remotely . | . . . . Salvage Created 1259 | 228 496 63 472 Parts 79 | 19 26 3 31 Haulers Intercepted 2 | . 2 . . Recyclers Shooed 1 | . 1 . . Parts Field Recycled . | . . . . Retrieved Matter . | . . . . Parts Self-Destructed . | . . . . Prevented . | . . . . Parts Restored . | . . . . Kills | -11 -10 -10 -10 ------- Run | Yrd Mat Min Sub Combat Hostiles Destroyed 24 | . 8 4 12 Guns 23 | . 7 4 12 Classes Destroyed 11 | 2 6 . 3 Builder 1 | . 1 . . Tunneler 9 | 9 . . . Hauler 2 | . 2 . . Recycler 1 | 1 . . . Mechanic 1 | . 1 . . Turret 2 | . . . 2 Watcher 3 | . 3 . . Swarmer 11 | . 4 4 3 Grunt 4 | . 4 . . Artisan 3 | . . . 3 Subdweller 9 | . . . 9 Best Kill Streak 5 | 4 3 2 5 Combat Bots Only 3 | . 2 2 3 Max Kills in Single Turn 1 | 1 1 1 1 Gunslinging . | . . . . Exploded . | . . . . Melee . | . . . . Uniques/NPCs Destroyed . | . . . . Combat | -11 -10 -10 -10 -------- Run | Yrd Mat Min Sub Hostile Shots Fired 163 | . 45 12 106 Missed 56 | . 13 3 40 Hits 107 | . 32 9 66 Projectile 107 | . 32 9 66 Critical Strikes 3 | . . 1 2 Damage Taken 1028 | . 219 39 770 Core 261 | . 41 13 207 Absorbed by Shields . | . . . . Ignored by Resistances 561 | . 141 32 388 Core Remaining (%) 100 | 100 . . . Volleys Fired 171 | 22 63 7 79 Largest 2 | 1 2 2 2 Hottest 150 | 50 100 100 150 Shots Fired 256 | 22 70 14 150 Gun 255 | 22 70 14 149 Cannon . | . . . . Launcher . | . . . . Special 1 | . . . 1 Kinetic 70 | . . . 70 Thermal 186 | 22 70 14 80 Explosive . | . . . . Electromagnetic . | . . . . Robot Hit Streak 32 | 22 32 10 25 Robot Miss Streak 2 | . 2 1 2 Penetration Max . | . . . . Secondary Targets 1 | . 1 . . Max Gunslinging Chain 1 | . 1 . . Shots Hit Robots 185 | 22 63 10 90 Core Hits 66 | 11 22 4 29 Critical Kills . | . . . . Critical Parts Destroyed . | . . . . Critical Strikes 14 | 1 5 1 7 Burn 13 | 1 5 1 6 Destroy 1 | . . . 1 Melee Attacks . | . . . . Impact . | . . . . Slashing . | . . . . Piercing . | . . . . Sneak Attacks . | . . . . Combat Hostiles . | . . . . Follow-up Attacks . | . . . . Damage Inflicted 2676 | 272 816 124 1464 Guns 2638 | 272 808 124 1434 Cannons . | . . . . Explosions . | . . . . Melee . | . . . . Ramming 14 | . 8 . 6 Kinetic 821 | . . . 821 Thermal 1841 | 272 808 124 637 Explosive . | . . . . Electromagnetic . | . . . . Impact . | . . . . Slashing . | . . . . Piercing . | . . . . Highest Corruption . | . . . . Average Corruption . | . . . . Corruption Purged . | . . . . Corruption Blocked . | . . . . Overload Shots . | . . . . Overflow Damage . | . . . . Projectiles . | . . . . Explosions . | . . . . Melee . | . . . . Knockbacks 2 | . 1 . 1 Impact 2 | . 1 . 1 Kinetic . | . . . . Secondary . | . . . . Self-Inflicted Damage 2 | . . . 2 Shots . | . . . . Rammed 8 | . 2 2 4 Targets Rammed 8 | . 2 2 4 Kicked . | . . . . Crushed . | . . . . Highest Temperature 395 | 50 395 . 132 Average Temperature 89 | 16 118 . 95 Received Heat Transfer 577 | . 168 . 409 Effects 1 | . 1 . . Shutdowns 1 | . 1 . . Siege Activations . | . . . . Martial Activations . | . . . . Shielding Activations . | . . . . Robots Disrupted . | . . . . Combat Hostiles . | . . . . Robots Corrupted . | . . . . Combat Hostiles . | . . . . Parts Fried . | . . . . Impact Corruptions . | . . . . Robots Melted 1 | . 1 . . Combat Hostiles 1 | . 1 . . Parts Melted 14 | 2 6 3 3 Heat Transferred 6377 | 888 2738 444 2307 Parts Sabotaged . | . . . . Parts Stolen . | . . . . Parts Stripped . | . . . . Power Chain Reactions . | . . . . Alert | -11 -10 -10 -10 ------- Run | Yrd Mat Min Sub Maximum Alert Level . | . . . . Low Security (%) 100 | 100 100 100 . Level 1 . | . . . . Level 2 . | . . . . Level 3 . | . . . . Level 4 . | . . . . Level 5 . | . . . . High Security . | . . . . Max Security . | . . . . Peak Influence 55 | 10 55 50 . Initial . | . . . . Average 3 | 1 4 3 . Influence Increases 555 | 50 245 100 160 Destroy 0b10 Robot/C 340 | . 160 80 100 Destroy 0b10 Robot/NC 85 | 50 35 . . Destroy Leader 70 | . 50 20 . Lose Combat Pursuer 60 | . . . 60 Influence Decreases 555 | 50 245 100 160 Time Decay 555 | 50 245 100 160 Squads Dispatched . | . . . . Investigation . | . . . . Extermination . | . . . . Reinforcement . | . . . . Assault . | . . . . Garrison . | . . . . Intercept . | . . . . Searches Triggered . | . . . . Construction Impeded . | . . . . Haulers Reinforced . | . . . . Active Scanning Responses . | . . . . Cargo Convoy Interrupts . | . . . . Stealth | -11 -10 -10 -10 --------- Run | Yrd Mat Min Sub Distress Signals 1 | . 1 . . Communications Jammed . | . . . . Distress Signals . | . . . . Times Spotted 34 | . 15 4 15 Peak Tracking Total 3 | . 3 2 3 Tactical Retreats 3 | . . . 3 Traps | -11 -10 -10 -10 ------- Run | Yrd Mat Min Sub Traps Triggered 4 | . 1 . 3 Indirectly . | . . . . Trap Hack Attempts . | . . . . Triggered . | . . . . Disarmed . | . . . . Reprogrammed . | . . . . Reused . | . . . . Traps Extracted . | . . . . Installed . | . . . . Triggered . | . . . . Machines | -11 -10 -10 -10 ---------- Run | Yrd Mat Min Sub Machines Disabled 1 | . . . 1 Max in Single Turn 1 | . . . 1 Machines Repaired . | . . . . Machines Dismantled . | . . . . Machines Sabotaged . | . . . . Overloaded Fab Kills . | . . . . Hacking | -11 -10 -10 -10 --------- Run | Yrd Mat Min Sub Machines Accessed 2 | . . . 2 Terminals . | . . . . Fabricators . | . . . . Repair Stations . | . . . . Recycling Units . | . . . . Scanalyzers . | . . . . Garrison Access . | . . . . Total Hacks 5 | . . . 5 Successful 5 | . . . 5 Failed . | . . . . Catastrophic . | . . . . Database Lockouts . | . . . . Manual . | . . . . Terminals . | . . . . Fabricators . | . . . . Repair Stations . | . . . . Recycling Units . | . . . . Scanalyzers . | . . . . Garrison Access . | . . . . Terminal Hacks 5 | . . . 5 Record 4 | . . . 4 Proto ID Catalog 1 | . . . 1 Fabricator Hacks . | . . . . Repair Station Hacks . | . . . . Recycling Unit Hacks . | . . . . Scanalyzer . | . . . . Garrison Access Hacks . | . . . . Unauthorized Hacks . | . . . . Terminals . | . . . . Fabricators . | . . . . Repair Stations . | . . . . Recycling Units . | . . . . Scanalyzers . | . . . . Garrison Access . | . . . . Data Cores Recovered . | . . . . Used . | . . . . Hacking Detections . | . . . . Full Trace Events . | . . . . Feedback Events . | . . . . Feedback Blocked . | . . . . Robot Schematics Acquired . | . . . . Robots Built . | . . . . Authchips . | . . . . Time . | . . . . Total Robot Build Rating . | . . . . Part Schematics Acquired . | . . . . Parts Built . | . . . . Authchips . | . . . . Time . | . . . . Total Part Build Rating . | . . . . Part Studies Acquired . | . . . . Parts Repaired . | . . . . Time . | . . . . Parts Recycled . | . . . . Recycled Matter . | . . . . Retrieved Matter . | . . . . Retrieved Components . | . . . . Parts Scanalyzed . | . . . . Part Schematics Acquired . | . . . . Parts Damaged . | . . . . Bothacking | -11 -10 -10 -10 ------------ Run | Yrd Mat Min Sub Used RIF Installer . | . . . . Robots Hacked . | . . . . Non-combat . | . . . . Combat . | . . . . Robot Hacks Applied . | . . . . Relay Couplers Released . | . . . . Fabnet Peak Effective % . | . . . . Robots Rewired . | . . . . Allies Hacked . | . . . . Hacks Repelled . | . . . . Allies | -11 -10 -10 -10 -------- Run | Yrd Mat Min Sub Total Allies . | . . . . Largest Group . | . . . . Highest-Rated Group . | . . . . Highest-Rated Ally . | . . . . Total Orders . | . . . . Ally Attacks . | . . . . Total Damage . | . . . . Kills . | . . . . Allies Corrupted . | . . . . Allies Melted . | . . . . Intel | -11 -10 -10 -10 ------- Run | Yrd Mat Min Sub Active Infowar (turns) 4799 | 302 1590 1070 1837 Sensors 4799 | 302 1590 1070 1837 Structural 3590 | . 683 1070 1837 Robot Analysis Total . | . . . . Derelict Logs Recovered 1 | . . . 1 Drone Launches . | . . . . Drone Recoveries . | . . . . Exploration | -11 -10 -10 -10 ------------- Run | Yrd Mat Min Sub Turns Passed 4828 | 331 1590 1070 1837 Spaces Moved 2433 | 181 900 638 714 Core 44 | 15 . . 29 Treads 2389 | 166 900 638 685 Legs . | . . . . Wheels . | . . . . Hover . | . . . . Flight . | . . . . Fastest Speed 50 | 50 160 160 160 Average Speed 159 | 150 160 160 161 Slowest Speed 200 | 160 160 160 200 Overloaded Moves . | . . . . Propulsion Burnouts . | . . . . Robots Hopped . | . . . . Potential Cave-ins . | . . . . Cave-ins Triggered . | . . . . Exploration Rate (%) 63 | 7 97 100 49 Regions Visited 3 Branch Regions 2 Pre-discovered Areas 1 | . . . 1 Known Exits Taken 3 | 1 1 1 . Unknown Exits Taken . | . . . . Scrap Searched 8 | . . . 8 Spaces Dug 1 | . . . 1 Terrain Destroyed 1 | . . . 1 Melee . | . . . . Projectile 1 | . . . 1 AOE . | . . . . Terrain Rammed . | . . . . Walls Destroyed . | . . . . Machines Disabled . | . . . . Actions | -11 -10 -10 -10 --------- Run | Yrd Mat Min Sub Total 3107 | 217 979 672 1239 Wait 460 | . . 23 437 Move 2430 | 180 899 637 714 Hop . | . . . . Pick Up 16 | 9 5 . 2 Fast Attach 4 | . 4 . . Attach 9 | 6 2 . 1 Detach . | . . . . Swap 4 | . 1 2 1 Drop 5 | . 3 1 1 Fire 171 | 22 63 7 79 Melee . | . . . . Ram 4 | . . . 4 Kick . | . . . . Crush 4 | . 2 2 . Escape Stasis . | . . . . Rewire . | . . . . Trap . | . . . . Miscellaneous . | . . . . Route ------- -11/Scrapyard -10/Materials (discovered 5 exits: *Mat x3 / *Min / Sub) -10/Mines (discovered 3 exits: *Mat x2 / *Sub) -10/Subcaves (discovered 2 exits: *Mat / *Rec) History --------- Turn | Location | Event 12 | -11/Scrapyard | Identified exit to Materials 12 | -11/Scrapyard | Discovered exit to Materials (range 16) 332 | -11/Scrapyard | Entered Materials 332 | -10/Materials | Evolved 1 slot: Utility x1 333 | -10/Materials | Build established: Hacker-Mutant 479 | -10/Materials | Identified exit to Materials 479 | -10/Materials | Discovered exit to Materials (range 7) 798 | -10/Materials | Identified exit to Mines 798 | -10/Materials | Discovered exit to Mines (range 15) 878 | -10/Materials | Discovered exit to Materials (range 13) 1138 | -10/Materials | Discovered exit to Materials (range 15) 1685 | -10/Materials | Identified exit to Subcaves 1685 | -10/Materials | Discovered exit to Subcaves (range 10) 1922 | -10/Materials | Entered Mines 1994 | -10/Mines | Discovered exit to Materials (range 6) 2027 | -10/Mines | Received a Rocket Launcher from a helpful Derelict 2079 | -10/Mines | Discovered exit to Subcaves (range 15) 2427 | -10/Mines | Discovered exit to Materials (range 12) 2550 | -10/Mines | A weapon hastily lodged in a ceiling crevice suddenly fell to the ground 2992 | -10/Mines | Entered Subcaves 2993 | -10/Subcaves | Approached by a straggling Scientist 3161 | -10/Subcaves | Visited 4L-MR0's lab 3281 | -10/Subcaves | Learned location of 1 exit from Materials 3370 | -10/Subcaves | Ambushed by angry Subdweller bent on revenge 3489 | -10/Subcaves | Identified exit to Materials 3489 | -10/Subcaves | Discovered exit to Materials (range 15) 3533 | -10/Subcaves | Visited Clippyterm 3538 | -10/Subcaves | Learned location of Deep Caves (-6) 3538 | -10/Subcaves | Learned Research security intel 3715 | -10/Subcaves | Core integrity fell below 50% 3724 | -10/Subcaves | Identified exit to Recycling 3724 | -10/Subcaves | Discovered exit to Recycling (range 12) 4122 | -10/Subcaves | Shifting Twisted Machinery released Sub. Monowheel 4122 | -10/Subcaves | Shifting Twisted Machinery released Piercing Trap 4814 | -10/Subcaves | Core integrity fell below 20% 4829 | -10/Subcaves | Destroyed by KR-GIY(R) with Subdweller Machine Gun Last Messages --------------- 04733_ Spikes shoot up from the floor. 04733_ Critical hit (Impale). 04733_ Lgt. Treads destroyed. 04733_ Critical hit (Impale). 04735_ UY-PUY(c) triggered Piercing Trap. 04735_ Spikes shoot up from the floor. 04735_ UY-PUY(c) destroyed. 04747_ Acquired Machine Analyzer. 04803_ Mining Laser destroyed. 04813_ Critical hit (Meltdown: +160). 04814_ BK-P18(R) suffers critical hit (Burn). 04814_ BK-P18(R) destroyed. 04816_ Acquired 24 matter. 04823_ Critical hit (Destroy). 04823_ Med. Laser destroyed. 04824_ Slammed into KR-GIY(R). 04824_ KR-GIY(R) knocked back. 04826_ Slammed into KR-GIY(R). 04826_ Destabilizing: Core damaged (-5). 04827_ Slammed into KR-GIY(R). Map ----- +----------------------------------------------------+ | ???????????????????#####?????#########" "##????? | | ???????????????????##################### ######??# | | ???????????????????## ########]### ### ######### | | ???????????????????## ##" %= # ##### | | ???????????????????### < & | | ????????????????????## " ### "# [&& | | ????????????????????##""" #############%& ## # | | ????????????????????#####################&! ##### | | ????????????????????##########?????????## ## | | ??????????????????????????????????????### #### | | ??????????????????????????????????????### ##### | | ??????????????????????????????????????## ####### | | ??????????????????????????????????????## ###### | | ??????????????????????????????????????## ###### | | ??????????????????????????????????????### ## # | | ??????????????????????????????????????#### # | | ???????????????????????????????????????#### # # | | ????????????????????????????????????????#### | | ?????????????????????????????????????????##### | | ??????????????????????????????????????????#### | | ????????????????????????????????????????????### | | ?????????????????###########????????????????## | | ????????????????""###########???????????????## | | ????????????????"" " ###??????????????### | | ????????????????""" """ R ##??????????????### | | ?????????????## " "" @###??????????????## | | ?????????????## ""### ##???????????????### ## | | ?????????????# ? "#### ###???????????????###### | | ?????????????????##### ###????????????????#### | | ?????????????????## #####????????????????### | | ????????????????### #####????????????????### | | ????????????????### ##????????????????### | | ?????????????? ### ###????????????????## # | | ????????????####### #####????????????????## # | | ???????????##### #####?????????????????#### | | ????????###### ^ ###???????????????????#### | | ???????###### ## ##???????????????????????? | | ???????### ^ ### ###??????????????????????? | | ???????## #### ##??????????????????????? | | ???????## #### ##??????????????????????? | | ???????## # ### ###??????????????????????? | | ???????## ##??????????????????????? | | ???????## ##??????????????????????? | | ???????## ##### ###??????????????????????? | | ???????### ### #########??????????????????????? | | ???????######## #######???????????????????????? | | ????????###### ###?????????????????????????? | | ?????????### *%! ###????????????????????????? | | ?????????## #### #####??????????????????????? | | ?????????### ####### #####?????????????????????? | +----------------------------------------------------+ Best States ------------- Heat Dissipation 47 Energy Generation 10 Energy Capacity 250 Matter Stores 300 Matter Capacity 300 Sight Range 16 Robot Scan Range 14 Terrain Scan Density 10 Resistance: KI 35 Resistance: TH 35 Resistance: EX 35 Resistance: EM 35 Resistance: I 35 Resistance: S 35 Resistance: P 35 Evasion (%) 50 Targeting Accuracy 5 Recoil Reduction 2 Offensive Hacking 20 Item Schematics ----------------- None Robot Schematics ------------------ None Fabricated ------------ Nothing Repaired ---------- Nothing Studied --------- None Alien Tech Used ----------------- None Achievements -------------- None Challenges ------------ None Game ------ Seed LaserPointySegregator Manual? 0 Play Time 00:15:27 Cumulative 228.1 hours Start 2025.12.26 @ 08:45:05 End 2025.12.26 @ 08:59:39 Sessions 1 Manual Loads 0 Difficulty Explorer Special Mode None Game No. 352 Rogue 0 Adventurer 0 Explorer 352 Win Type - Total 0 Types 0/0/0/0/0/0/0/0/0/0 Lore% 71 Gallery% 68 Achievement% 53 Wizard Run 0 Options --------- Layout 1 ASCII 0 Keyboard 0 Movement Mouse Keybinds 0 Fullscreen 1 Font 24/Smallcaps Map View 50x35 Zoom Use 0% Tactical HUD 1 Map Filters NONE Filters NONE Steam 1 RUN: c976cd2b-c6bb-4782-90db-fb7da153f084